bitfinex/quotes_SOLUSD_20250517
["timestamp","ask_amount","ask_price","bid_price","bid_amount"]
[1747511524876,45.84896071,165.28,165.19,45.5]
[1747511525075,18.64964886,165.26,165.19,45.5]
[1747511525261,19.84896071,165.26,165.19,45.5]
[1747511526258,18.64964886,165.26,165.2,1.21048916]
[1747511526461,18.64964886,165.28,165.2,1.21048916]
[1747511526871,6.05041641,165.28,165.21,6.05290236]
[1747511527563,24.69925563,165.3,165.21,6.05290236]
[1747511527873,24.69925563,165.3,165.22,27.21010185]
[1747511528773,24.69925563,165.3,165.23,6.0521697]
[1747511528986,24.69925563,165.3,165.23,45.5]
[1747511532789,18.64964886,165.28,165.18,51.55387629]
[1747511532981,18.64964886,165.26,165.18,45.5]
[1747511533482,18.64964886,165.24,165.18,45.5]
[1747511533880,6.0521697,165.23,165.18,45.5]
[1747511535262,6.05190332,165.24,165.18,51.55392905]
[1747511536089,18.64964886,165.26,165.18,51.55392905]
[1747511536384,24.7008181,165.26,165.18,51.55392905]
[1747511540520,1.19931185,165.28,165.21,26.0]
[1747511540677,44.33925563,165.3,165.21,71.5]
[1747511540975,18.64964886,165.3,165.22,8.78459406]
[1747511541296,18.64964886,165.3,165.25,26.0]
[1747511541873,18.64964886,165.35,165.26,1.20985854]
[1747511542078,25.68668037,165.38,165.26,46.70985854]
[1747511542392,18.64964886,165.37,165.27,1.569]
[1747511542602,6.04668037,165.38,165.28,6.05033881]
[1747511542791,18.64964886,165.37,165.28,6.05033881]
[1747511543673,18.64964886,165.35,165.28,6.05033881]
[1747511543874,18.64964886,165.35,165.28,7.25997059]
[1747511544514,18.64964886,165.35,165.28,33.25997059]
[1747511544676,18.64964886,165.38,165.32,26.0]
[1747511544872,18.64964886,165.38,165.31,45.5]
[1747511545078,19.84896071,165.38,165.31,45.5]
[1747511546002,18.64964886,165.36,165.31,45.5]
[1747511546184,19.84896071,165.36,165.27,53.11936566]
[1747511546385,19.84896071,165.36,165.27,7.61936566]
[1747511546590,18.64964886,165.36,165.27,8.82921375]
[1747511546789,18.64964886,165.36,165.27,7.61936566]
[1747511547108,19.84896071,165.36,165.27,7.61936566]
[1747511548119,18.64964886,165.34,165.27,7.61936566]
[1747511548298,6.04751609,165.36,165.27,8.82917852]
[1747511548475,18.64964886,165.37,165.27,69.45594078]
[1747511548803,18.64964886,165.38,165.3,26.0]
[1747511549602,18.64964886,165.38,165.3,72.70956482]
[1747511549787,18.64964886,165.38,165.3,71.5]
[1747511550203,6.04704601,165.37,165.3,77.54931966]
[1747511550897,6.04704601,165.37,165.3,45.5]
[1747511551104,7.24635786,165.37,165.3,45.5]
[1747511551307,18.64964886,165.36,165.27,1.569]
[1747511551507,18.64964886,165.34,165.26,45.5]
[1747511551815,18.64964886,165.32,165.23,71.07472485]
[1747511551989,18.64964886,165.3,165.23,11.94687586]
[1747511552390,18.64964886,165.28,165.23,11.94687586]
[1747511552812,18.64964886,165.28,165.23,7.63625101]
[1747511553311,18.64964886,165.28,165.23,1.5841]
[1747511553603,6.04971518,165.3,165.23,7.63618926]
[1747511555006,18.64964886,165.33,165.24,26.0]
[1747511555211,24.6981579,165.33,165.24,71.5]
[1747511556519,24.6981579,165.33,165.25,6.05143721]
[1747511557212,24.6981579,165.33,165.25,7.2612847]
[1747511558093,18.64964886,165.33,165.25,7.2612847]
[1747511558416,18.64964886,165.33,165.25,67.88987774]
[1747511559508,25.89751211,165.33,165.25,51.55143721]
[1747511561918,24.69820026,165.33,165.25,51.55143721]
[1747511564201,18.64964886,165.31,165.23,1.5841]
[1747511564413,18.64964886,165.29,165.2,55.92382485]
[1747511564615,18.64964886,165.29,165.2,81.92382485]
[1747511565197,18.64964886,165.29,165.2,77.6132]
[1747511565506,18.64964886,165.27,165.21,6.05275441]
[1747511566629,6.05002247,165.29,165.21,6.05275441]
[1747511566802,18.64964886,165.29,165.21,21.18501032]
[1747511567126,18.64964886,165.31,165.24,26.0]
[1747511567299,18.64964886,165.31,165.24,71.5]
[1747511567922,7.24791934,165.33,165.24,71.5]
[1747511568227,18.64964886,165.32,165.24,71.5]
[1747511568827,6.04904661,165.32,165.25,6.05143721]
[1747511570327,24.6981579,165.33,165.25,51.55143721]
[1747511574700,39.8194305,165.33,165.25,45.5]
[1747511574927,1.19931185,165.32,165.25,45.5]
[1747511575405,1.19931185,165.32,165.25,51.55139466]
[1747511575828,1.19931185,165.32,165.25,45.5]
[1747511576618,6.04924082,165.31,165.25,51.55127845]
[1747511577129,18.64964886,165.3,165.25,45.5]
[1747511578118,18.64964886,165.3,165.25,51.55135095]
[1747511578309,18.64964886,165.33,165.25,51.55135095]
[1747511579335,24.69841535,165.33,165.25,51.55135095]
[1747511580355,18.64964886,165.33,165.25,51.55135095]
[1747511580537,18.64964886,165.36,165.27,6.2858]
[1747511580726,38.16964886,165.36,165.27,51.7858]
[1747511581818,18.64964886,165.34,165.28,6.05033881]
[1747511582015,18.64964886,165.34,165.27,57.8363972]
[1747511583231,18.64964886,165.32,165.27,45.5]
[1747511583440,18.64964886,165.32,165.26,1.5584]
[1747511583812,18.64964886,165.3,165.24,6.05170183]
[1747511584011,19.84896071,165.3,165.24,45.5]
[1747511585528,39.36896071,165.3,165.24,45.5]
[1747511586139,18.64964886,165.28,165.24,45.5]
[1747511586442,18.64964886,165.28,165.22,53.11082663]
[1747511587639,6.05048358,165.28,165.22,53.11082663]
[1747511587819,24.69970356,165.29,165.22,53.11082663]
[1747511588744,24.69970356,165.29,165.22,47.0584]
[1747511589144,24.69970356,165.29,165.22,53.11091822]
[1747511590032,24.69970356,165.29,165.22,47.0584]
[1747511590240,1.19931185,165.28,165.2,45.5]
[1747511590949,1.19931185,165.28,165.2,51.55326292]
[1747511592046,18.64964886,165.26,165.2,51.55326292]
[1747511593145,6.05108575,165.26,165.2,51.55326292]
[1747511593450,24.70073461,165.26,165.2,45.5]
[1747511593647,24.70073461,165.26,165.2,51.55321366]
[1747511594454,18.64964886,165.25,165.2,45.5]
[1747511595754,6.05155638,165.25,165.2,45.5]
[1747511596634,18.64964886,165.24,165.2,45.5]
[1747511596834,19.84896071,165.24,165.18,47.0584]
[1747511597344,19.84896071,165.24,165.17,45.5]
[1747511597857,18.64964886,165.22,165.17,45.5]
[1747511599359,6.05287947,165.22,165.17,45.5]
[1747511600157,1.19931185,165.24,165.17,51.55428715]
[1747511600360,18.64964886,165.26,165.17,51.55428715]
[1747511601540,18.64964886,165.26,165.17,66.69020771]
[1747511601541,6.05112261,165.26,165.17,66.69020771]
[1747511602461,6.05112261,165.26,165.17,51.55428715]
[1747511602648,7.25043446,165.26,165.17,51.55428715]
[1747511605967,22.37811205,165.26,165.17,51.55428715]
[1747511606263,18.64964886,165.25,165.16,6.05460845]
[1747511606434,18.64964886,165.23,165.15,32.05498695]
[1747511606637,18.64964886,165.21,165.15,32.05498695]
[1747511606836,18.64964886,165.21,165.15,26.0]
[1747511607043,18.64964886,165.21,165.15,32.05501139]
[1747511607545,18.64964886,165.21,165.14,51.47532485]
[1747511607750,18.64964886,165.19,165.14,4.31062485]
[1747511607941,6.0547348,165.16,165.14,4.31062485]
[1747511608136,24.70403625,165.17,165.14,4.31062485]
[1747511610436,18.64964886,165.15,165.14,4.31062485]
[1747511610958,38.08964886,165.15,165.14,4.31062485]
[1747511612370,44.14475028,165.15,165.14,4.31062485]
[1747511614759,67.22960383,165.15,165.09,8.6534069]
[1747511614961,18.64964886,165.13,165.09,8.6534069]
[1747511615269,18.64964886,165.11,165.09,8.6534069]
[1747511615434,1.19931185,165.1,165.05,1.6647]
[1747511615642,18.64964886,165.12,165.05,1.6647]
[1747511615847,18.64964886,165.1,165.05,1.6647]
[1747511616066,1.19931185,165.09,165.05,1.6647]
[1747511616275,18.64964886,165.11,165.05,1.6647]
[1747511616577,18.64964886,165.09,165.05,1.6647]
[1747511616939,39.28896071,165.09,165.02,26.0]
[1747511617245,39.28896071,165.09,165.02,32.05981903]
[1747511617443,39.28896071,165.09,165.02,26.0]
[1747511617780,39.28896071,165.09,165.01,9.4832351]
[1747511618668,18.64964886,165.07,165.01,15.54334951]
[1747511618875,18.64964886,165.05,165.01,15.54334951]
[1747511619760,7.25736136,165.07,165.01,15.54334951]
[1747511620583,7.25736136,165.07,165.01,9.4832351]
[1747511621281,18.64964886,165.06,165.01,9.4832351]
[1747511621442,1.19931185,165.05,165.01,9.4832351]
[1747511621873,18.64964886,165.03,165.01,9.4832351]
[1747511622064,19.84896071,165.02,165.01,9.4832351]
[1747511623449,18.64964886,165.02,165.01,9.4832351]
[1747511627063,1.19931185,165.04,165.01,15.54347387]
[1747511627270,18.64964886,165.05,165.01,15.54347387]
[1747511628262,18.64964886,165.07,165.02,1.6206]
[1747511628464,6.05668672,165.11,165.02,1.6206]
[1747511628669,1.19931185,165.11,165.04,32.4027]
[1747511628874,20.63931185,165.12,165.04,32.4027]
[1747511629066,18.64964886,165.11,165.04,32.4027]
[1747511629568,18.64964886,165.11,165.04,77.9027]
[1747511630978,18.64964886,165.11,165.05,6.05877006]
[1747511632482,1.19931185,165.1,165.05,6.05877006]
[1747511632858,18.64964886,165.09,165.04,71.5]
[1747511633084,18.64964886,165.07,165.04,26.0]
[1747511636463,18.64964886,165.07,165.04,32.05913076]
[1747511636663,19.84896071,165.09,165.04,32.05913076]
[1747511636972,25.90631714,165.09,165.04,32.05913076]
[1747511637468,25.90631714,165.09,165.04,26.0]
[1747511640282,18.64964886,165.1,165.04,32.05909241]
[1747511640582,18.64964886,165.1,165.04,77.55909241]
[1747511640782,18.64964886,165.11,165.04,92.70693535]
[1747511645007,19.44,165.13,165.05,6.6368]
[1747511645164,19.44,165.18,165.08,26.0]
[1747511645360,19.44,165.18,165.08,92.05105215]
[1747511645560,39.99931185,165.23,165.13,21.19542178]
[1747511645884,38.8,165.23,165.14,1.21084134]
[1747511646061,18.64964886,165.22,165.14,1.21084134]
[1747511646260,38.8,165.23,165.14,1.21084134]
[1747511647062,18.64964886,165.22,165.15,6.05510142]
[1747511647762,18.64964886,165.22,165.18,26.0]
[1747511648965,18.64964886,165.22,165.18,32.05391207]
[1747511649571,25.90154992,165.22,165.17,1.5854]
[1747511649777,25.90154992,165.22,165.15,71.5]
[1747511650379,25.90154992,165.22,165.15,77.55505697]
[1747511651397,25.90154992,165.22,165.15,71.5]
[1747511651598,25.90154992,165.22,165.13,1.5469]
[1747511651893,18.64964886,165.2,165.13,26.0]
[1747511652075,18.64964886,165.18,165.13,26.0]
[1747511652994,18.64964886,165.16,165.13,26.0]
[1747511653603,19.84896071,165.16,165.1,45.5]
[1747511653909,19.84896071,165.16,165.1,71.5]
[1747511654197,18.64964886,165.16,165.1,77.55663021]
[1747511655001,18.64964886,165.2,165.13,26.0]
[1747511655298,18.64964886,165.2,165.14,6.05546808]
[1747511658383,18.64964886,165.19,165.13,77.55571431]
[1747511659886,18.64964886,165.22,165.13,77.55571431]
[1747511660199,1.19931185,165.21,165.13,45.5]
[1747511661894,18.64964886,165.19,165.13,45.5]
[1747511662095,1.19931185,165.18,165.13,45.5]
[1747511662292,1.19931185,165.18,165.12,51.55614557]
[1747511662822,19.84896071,165.19,165.12,51.55614557]
[1747511663000,25.9027949,165.19,165.12,51.55614557]
[1747511664509,6.05337239,165.2,165.12,51.55614557]
[1747511664691,18.64964886,165.22,165.15,26.0]
[1747511665197,138.2,165.29,165.15,26.0]
[1747511665198,6.0507049,165.27,165.2,26.0]
[1747511665510,6.05003667,165.29,165.2,26.0]
[1747511665810,18.64964886,165.28,165.2,26.0]
[1747511666613,18.64964886,165.28,165.21,6.05290236]
[1747511666993,18.64964886,165.3,165.24,26.0]
[1747511667317,18.64964886,165.3,165.24,27.5818]
[1747511668028,18.64964886,165.3,165.25,6.05143721]
[1747511668318,6.04965243,165.3,165.25,6.05143721]
[1747511669199,18.64964886,165.3,165.25,6.05143721]
[1747511669404,19.84896071,165.3,165.24,33.6335287]
[1747511669721,19.84896071,165.3,165.22,26.0]
[1747511670216,18.64964886,165.28,165.23,26.0]
[1747511671099,19.84896071,165.32,165.23,32.0518217]
[1747511671300,18.64964886,165.31,165.24,1.21009856]
[1747511671521,18.64964886,165.32,165.24,7.29279856]
[1747511672094,18.64964886,165.32,165.27,26.0]
[1747511672796,18.64964886,165.32,165.27,32.050498]
[1747511673720,25.89800904,165.32,165.27,26.0]
[1747511674618,25.89800904,165.32,165.24,51.5827]
[1747511674928,25.89800904,165.32,165.21,51.55265012]
[1747511675129,45.33800904,165.32,165.21,51.55265012]
[1747511675425,6.5461,165.31,165.21,51.55265012]
[1747511675720,18.64964886,165.29,165.21,51.55265012]
[1747511675898,18.64964886,165.26,165.21,51.55265012]
[1747511676099,18.64964886,165.26,165.21,6.05265012]
[1747511677325,1.19931185,165.3,165.21,6.05265012]
[1747511677503,18.64964886,165.3,165.24,26.0]
[1747511678111,6.04952722,165.31,165.25,6.05143721]
[1747511678112,18.64964886,165.31,165.25,6.05143721]
[1747511678308,18.64964886,165.31,165.25,51.55143721]
[1747511679407,24.69900534,165.31,165.25,45.5]
[1747511679726,25.89831719,165.31,165.25,45.5]
[1747511680225,25.89831719,165.31,165.25,51.55137665]
[1747511681133,19.84896071,165.31,165.25,51.55137665]
[1747511681297,18.64964886,165.31,165.25,51.55137665]
[1747511681498,18.64964886,165.32,165.25,51.55137665]
[1747511685508,18.64964886,165.32,165.25,52.76125429]
[1747511686534,18.64964886,165.32,165.25,51.55137665]
[1747511687429,25.89794657,165.32,165.25,51.55137665]
[1747511690439,18.64964886,165.32,165.25,6.05137665]
[1747511691435,6.04891121,165.32,165.25,6.05137665]
[1747511691637,19.84896071,165.31,165.24,77.55174871]
[1747511692737,6.04960677,165.3,165.24,77.55174871]
[1747511695018,7.24745507,165.34,165.24,77.55174871]
[1747511695217,18.64964886,165.33,165.24,77.55174871]
[1747511696037,24.69843454,165.33,165.24,92.6812573]
[1747511696821,18.64964886,165.31,165.24,71.5]
[1747511697146,18.64964886,165.29,165.21,45.5]
[1747511697346,18.64964886,165.27,165.2,53.21152356]
[1747511697646,18.64964886,165.25,165.2,26.0]
[1747511698143,6.05180343,165.24,165.2,26.0]
[1747511698324,6.05180343,165.24,165.16,63.96296393]
[1747511698325,19.84896071,165.23,165.16,63.96296393]
[1747511698526,19.84896071,165.23,165.17,26.0]
[1747511699538,18.64964886,165.23,165.17,32.05423941]
[1747511699744,45.42,165.29,165.17,32.05423941]
[1747511699745,1.19931185,165.25,165.17,32.05423941]
[1747511699945,18.64964886,165.26,165.17,32.05423941]
[1747511700115,18.64964886,165.24,165.17,32.05423941]
[1747511700489,18.64964886,165.22,165.17,26.0]
[1747511700646,18.64964886,165.22,165.13,6.05572485]
[1747511700647,18.64964886,165.2,165.13,6.05572485]
[1747511701213,18.64964886,165.22,165.13,6.05572485]
[1747511701443,18.64964886,165.2,165.13,6.05572485]
[1747511701745,6.0536352,165.19,165.14,26.0]
[1747511701939,24.70299866,165.2,165.14,26.0]
[1747511702745,24.70299866,165.2,165.12,8.116]
[1747511703046,18.64964886,165.18,165.12,1.5059]
[1747511703215,18.64964886,165.18,165.12,7.56208778]
[1747511703529,18.64964886,165.18,165.12,27.5059]
[1747511703725,6.05436822,165.17,165.12,27.5059]
[1747511703913,18.64964886,165.16,165.12,33.56208433]
[1747511704113,18.64964886,165.17,165.12,27.5059]
[1747511704326,19.84896071,165.17,165.12,27.5059]
[1747511704736,18.64964886,165.17,165.12,27.5059]
[1747511704923,1.19931185,165.16,165.08,52.1101]
[1747511705138,1.19931185,165.16,165.08,6.6101]
[1747511705532,1.19931185,165.16,165.08,32.6101]
[1747511705750,18.64964886,165.14,165.08,38.66775443]
[1747511706147,18.64964886,165.14,165.08,32.6101]
[1747511706353,18.64964886,165.14,165.08,26.0]
[1747511707266,2.72501185,165.22,165.11,26.0]
[1747511707429,2.72501185,165.22,165.11,90.94]
[1747511707630,21.18515827,165.21,165.11,90.94]
[1747511707943,6.0841,165.23,165.15,26.0]
[1747511708137,38.82,165.24,165.15,27.5469]
[1747511708454,18.64964886,165.23,165.15,27.5469]
[1747511708953,18.64964886,165.21,165.16,26.0]
[1747511709831,1.19931185,165.2,165.16,26.0]
[1747511710030,18.64964886,165.21,165.16,26.0]
[1747511710432,1.19931185,165.2,165.12,6.5537]
[1747511710651,1.19931185,165.2,165.11,6.05631384]
[1747511710858,1.19931185,165.2,165.11,32.05631384]
[1747511711227,1.19931185,165.2,165.11,26.0]
[1747511711434,1.19931185,165.2,165.11,32.05648737]
[1747511712560,18.64964886,165.18,165.11,32.05648737]
[1747511713640,24.7038735,165.18,165.11,32.05648737]
[1747511717561,39.83887773,165.18,165.11,26.0]
[1747511717763,18.64964886,165.16,165.1,45.5]
[1747511717969,18.64964886,165.14,165.08,38.64490072]
[1747511718941,18.64964886,165.17,165.11,26.0]
[1747511719477,18.64964886,165.17,165.09,1.21132542]
[1747511719478,18.64964886,165.17,165.09,26.0]
[1747511719674,18.64964886,165.17,165.1,6.05693519]
[1747511720281,24.70412881,165.17,165.1,6.05693519]
[1747511720580,1.19931185,165.16,165.09,26.0]
[1747511720765,1.19931185,165.16,165.07,6.05803598]
[1747511721351,1.19931185,165.16,165.07,21.20312594]
[1747511721782,1.19931185,165.21,165.1,26.0]
[1747511722079,6.0521697,165.23,165.14,26.0]
[1747511722257,18.64964886,165.21,165.14,71.5]
[1747511723479,20.61931185,165.24,165.15,6.05510142]
[1747511723786,18.64964886,165.23,165.15,6.05510142]
[1747511723984,24.70181856,165.23,165.15,7.2658516]
[1747511725487,24.70181856,165.23,165.15,6.05510142]
[1747511726281,24.70181856,165.23,165.15,51.55510142]
[1747511726594,18.64964886,165.23,165.18,26.0]
[1747511726762,18.64964886,165.27,165.22,26.0]
[1747511727171,19.42,165.29,165.23,26.0]
[1747511727381,20.59931185,165.31,165.23,26.0]
[1747511727688,18.64964886,165.3,165.23,26.0]
[1747511729093,24.69934205,165.3,165.24,6.05180343]
[1747511729564,18.64964886,165.3,165.24,6.05180343]
[1747511730587,18.64964886,165.31,165.24,6.05180343]
[1747511731886,1.19931185,165.33,165.24,6.05180343]
[1747511732067,18.64964886,165.33,165.27,26.0]
[1747511733090,24.69827969,165.33,165.27,32.05058954]
[1747511734297,24.69827969,165.33,165.27,26.0]
[1747511734476,18.64964886,165.31,165.24,71.5]
[1747511735074,6.04960677,165.3,165.24,45.5]
[1747511735275,6.04960677,165.3,165.23,6.05205424]
[1747511735471,18.64964886,165.29,165.22,6.05244197]
[1747511735881,18.64964886,165.29,165.22,32.05244197]
[1747511738093,6.04998754,165.29,165.22,32.05244197]
[1747511739394,18.64964886,165.29,165.22,32.05244197]
[1747511740495,6.04935675,165.31,165.22,47.183782]
[1747511740675,18.64964886,165.32,165.25,26.0]
[1747511741291,18.64964886,165.34,165.27,1.5655]
[1747511741494,18.64964886,165.34,165.28,6.05033881]
[1747511744389,18.64964886,165.36,165.28,87.22595612]
[1747511745572,24.6971055,165.36,165.28,87.22595612]
[1747511746680,24.6971055,165.36,165.31,32.04903949]
[1747511746885,18.64964886,165.36,165.31,32.04903949]
[1747511749002,24.69719005,165.36,165.31,26.0]
[1747511749184,24.69719005,165.36,165.29,32.04973354]
[1747511749997,25.8965019,165.36,165.29,26.0]
[1747511750194,41.01503116,165.36,165.28,45.5]
[1747511750398,41.01503116,165.36,165.27,53.11611944]
[1747511752002,41.01503116,165.36,165.27,47.0655]
[1747511752311,41.01503116,165.36,165.26,32.05104013]
[1747511755018,41.01503116,165.36,165.26,26.0]
[1747511755512,41.01503116,165.36,165.26,32.05104119]
[1747511756286,41.01503116,165.36,165.26,77.55104119]
[1747511760110,41.01503116,165.36,165.26,71.5]
[1747511760312,41.01503116,165.36,165.26,77.55095191]
[1747511762740,25.8965019,165.36,165.26,77.55095191]
[1747511762917,24.69719005,165.36,165.29,26.0]
[1747511764135,18.64964886,165.36,165.3,6.04960677]
[1747511764304,24.69706388,165.36,165.3,7.62890677]
[1747511765237,18.64964886,165.36,165.3,7.62890677]
[1747511766236,8.43303485,165.37,165.33,26.0]
[1747511766408,18.64964886,165.38,165.33,26.0]
[1747511766615,18.64964886,165.39,165.33,26.0]
[1747511767203,19.84896071,165.39,165.33,26.0]
[1747511768083,19.84896071,165.39,165.31,6.2942]
[1747511768239,6.04668037,165.38,165.3,47.0793]
[1747511768536,6.04668037,165.38,165.3,53.1288411]
[1747511769332,18.64964886,165.36,165.3,1.5793]
[1747511769535,18.64964886,165.34,165.3,1.5793]
[1747511770237,1.19931185,165.37,165.3,1.5793]
[1747511770434,18.64964886,165.36,165.33,26.0]
[1747511770634,18.64964886,165.41,165.33,26.0]
[1747511771011,18.64964886,165.39,165.33,26.0]
[1747511772339,18.64964886,165.4,165.33,32.0484654]
[1747511774240,18.64964886,165.38,165.33,77.5484654]
[1747511775028,18.64964886,165.38,165.33,45.5]
[1747511775342,19.84896071,165.38,165.33,45.5]
[1747511776749,18.64964886,165.36,165.33,45.5]
[1747511776950,19.84896071,165.36,165.29,26.0]
[1747511777125,19.84896071,165.36,165.28,45.5]
[1747511777446,19.84896071,165.36,165.26,1.516]
[1747511777652,19.84896071,165.36,165.25,75.79885669]
[1747511777829,18.64964886,165.32,165.25,4.29885669]
[1747511778032,18.64964886,165.3,165.25,4.29885669]
[1747511778231,1.19931185,165.3,165.25,4.29885669]
[1747511779148,18.64964886,165.28,165.23,51.55203268]
[1747511780244,18.64964886,165.31,165.23,51.55203268]
[1747511780449,19.84896071,165.31,165.23,51.55203268]
[1747511781849,6.04960677,165.3,165.23,51.55203268]
[1747511783432,19.84896071,165.31,165.23,51.55203268]
[1747511783632,18.64964886,165.32,165.26,26.0]
[1747511783839,18.64964886,165.34,165.28,1.516]
[1747511784359,18.64964886,165.36,165.31,26.0]
[1747511785848,24.69707983,165.36,165.31,26.0]
[1747511786356,18.64964886,165.34,165.28,47.016]
[1747511786560,18.64964886,165.32,165.28,45.5]
[1747511786858,19.84896071,165.35,165.27,26.0]
[1747511787061,19.84896071,165.35,165.27,32.05062881]
[1747511787953,6.04814322,165.34,165.27,32.05062881]
[1747511789761,18.64964886,165.35,165.28,1.20991108]
[1747511790265,18.64964886,165.35,165.27,33.26032758]
[1747511790467,18.64964886,165.35,165.27,32.05062881]
[1747511791763,18.64964886,165.33,165.27,32.05062881]
[1747511792268,18.64964886,165.33,165.27,6.05062881]
[1747511792570,18.64964886,165.33,165.27,77.55062881]
[1747511792757,18.64964886,165.33,165.27,51.55062881]
[1747511792958,6.04854474,165.33,165.27,77.55062881]
[1747511793466,6.04854474,165.33,165.27,71.5]
[1747511793758,6.04854474,165.33,165.24,5.80785669]
[1747511793759,18.64964886,165.31,165.24,57.35957295]
[1747511793933,18.64964886,165.31,165.27,26.0]
[1747511795064,18.64964886,165.29,165.27,26.0]
[1747511795362,18.64964886,165.31,165.27,26.0]
[1747511795565,18.64964886,165.31,165.27,32.0507032]
[1747511796261,20.49931185,165.34,165.27,32.0507032]
[1747511796471,18.64964886,165.33,165.27,77.5507032]
[1747511797669,18.64964886,165.35,165.27,92.67746546]
[1747511797847,18.64964886,165.35,165.27,77.5507032]
[1747511798544,18.64964886,165.35,165.28,1.20974528]
[1747511799047,6.04790154,165.35,165.29,6.04997277]
[1747511800050,18.64964886,165.36,165.28,6.05033881]
[1747511801077,6.04777744,165.35,165.28,6.05033881]
[1747511801373,6.04777744,165.35,165.28,51.55033881]
[1747511801678,24.6964155,165.38,165.32,1.623]
[1747511801855,24.6964155,165.38,165.32,47.123]
[1747511802559,24.69605769,165.39,165.32,47.123]
[1747511802877,39.81184461,165.39,165.32,45.5]
[1747511803086,18.64964886,165.36,165.32,45.5]
[1747511803383,19.84896071,165.36,165.32,45.5]
[1747511804181,19.84896071,165.36,165.29,32.04990634]
[1747511804554,18.64964886,165.36,165.29,32.04990634]
[1747511805265,6.04777744,165.35,165.29,32.04990634]
[1747511806965,6.04668037,165.38,165.29,33.25962699]
[1747511807172,18.64964886,165.37,165.29,32.04990634]
[1747511807480,18.64964886,165.37,165.29,77.54990634]
[1747511808787,18.64964886,165.35,165.29,77.54990634]
[1747511808962,18.64964886,165.35,165.29,71.5]
[1747511810388,18.64964886,165.33,165.29,77.54995691]
[1747511810974,18.64964886,165.33,165.29,71.5]
[1747511811171,18.64964886,165.33,165.29,26.0]
[1747511811377,18.64964886,165.33,165.29,32.04991849]
[1747511811576,6.04792076,165.35,165.29,32.04991849]
[1747511812590,6.04792076,165.35,165.29,26.0]
[1747511812761,6.04792076,165.35,165.29,32.04988152]
[1747511813765,6.04792076,165.35,165.29,26.0]
[1747511815372,18.64964886,165.34,165.29,26.0]
[1747511815570,19.84896071,165.34,165.29,26.0]
[1747511817079,6.04850904,165.33,165.29,26.0]
[1747511818275,18.64964886,165.36,165.29,26.0]
[1747511818595,18.64964886,165.36,165.29,71.5]
[1747511818794,18.64964886,165.36,165.29,77.54996466]
[1747511818999,18.64964886,165.36,165.3,1.20964734]
[1747511819881,18.64964886,165.36,165.31,6.04924082]
[1747511820793,24.69596363,165.39,165.31,51.54924082]
[1747511823496,19.84896071,165.38,165.31,45.5]
[1747511824502,19.84896071,165.38,165.29,71.5]
[1747511824985,18.64964886,165.36,165.29,71.5]
[1747511825183,18.64964886,165.34,165.29,71.5]
[1747511825397,18.64964886,165.34,165.29,26.0]
[1747511826107,18.64964886,165.32,165.29,26.0]
[1747511829083,6.04921694,165.32,165.29,26.0]
[1747511829405,6.04921694,165.32,165.25,6.6392]
[1747511829701,18.64964886,165.3,165.23,49.79885669]
[1747511829909,18.64964886,165.28,165.23,49.79885669]
[1747511830207,18.64964886,165.28,165.23,4.29885669]
[1747511830710,18.64964886,165.26,165.21,26.0]
[1747511830885,19.84896071,165.31,165.21,26.0]
[1747511831087,18.64964886,165.29,165.21,26.0]
[1747511831280,18.64964886,165.27,165.21,26.0]
[1747511831506,18.64964886,165.29,165.21,26.0]
[1747511832006,18.64964886,165.29,165.21,32.05287926]
[1747511832913,18.64964886,165.27,165.21,26.0]
[1747511833116,24.70048315,165.27,165.21,32.05283717]
[1747511833285,18.64964886,165.29,165.21,32.05283717]
[1747511834507,39.82455356,165.29,165.21,26.0]
[1747511834809,18.64964886,165.27,165.21,26.0]
[1747511835688,18.64964886,165.25,165.2,27.6365]
[1747511837701,6.05180343,165.24,165.2,27.6365]
[1747511839916,6.05180343,165.24,165.2,26.0]
[1747511840618,6.05180343,165.24,165.17,77.55430742]
[1747511842937,6.05248512,165.23,165.17,26.0]
[1747511843099,18.64964886,165.22,165.17,26.0]
[1747511844117,18.64964886,165.2,165.17,26.0]
[1747511844699,18.64964886,165.23,165.17,32.05424528]
[1747511844900,18.64964886,165.23,165.17,33.26495845]
[1747511847437,1.19931185,165.27,165.2,26.0]
[1747511847602,18.64964886,165.27,165.2,71.5]
[1747511849522,18.64964886,165.27,165.21,6.05290236]
[1747511849905,18.64964886,165.27,165.2,71.5]
[1747511849906,1.19931185,165.26,165.2,45.5]
[1747511850112,1.19931185,165.26,165.17,6.05423292]